Cogmind - Beta 13 @@@ ROGUE MODE // 2024.04.15 @ 03:19:52 Player: Exceptionally Mediocre Result: Destroyed by L-31 Rogue with Katana Performance ------------- Evolutions (0) 0 Regions Visited (3) 600 Robots Destroyed (36) 180 Value Destroyed (618) 618 Prototype IDs (2) 40 Alien Tech Used (0) 0 Bonus (0) 0 TOTAL SCORE: 1438 Bonus ------- None Cogmind --------- Core Integrity 0/250 Matter 184/300 Energy 100/100 System Corruption 6% Temperature Cool (2) Movement Core (100) Ox1 Location -9/Recycling Parts ------- > --- POWER (1) -------- (None) > --- PROPULSION (2) --- (None) > --- UTILITY (2) ------ Scrap Engine > --- WEAPON (2) ------- Thermic Particle Construct/C > --- INVENTORY (5) ---- Small Storage Unit Large Battery (200) Sensor Array Peak State ------------ > --- POWER ------------ Light Nuclear Core > --- PROPULSION ------- Wheeled Compact Exoskeleton > --- UTILITY ---------- Scrap Engine > --- WEAPON ----------- Grenade Launcher Thermic Particle Construct/C > --- INVENTORY -------- Small Storage Unit Large Battery Sensor Array [Rating: 26] Favorites ----------- Power Light Ion Engine Engine Light Ion Engine Power Core Light Nuclear Core Propulsion Compact Wheel Wheel Compact Wheel Utility Small Storage Unit Device Improved Terrain Scanner Storage Small Storage Unit Protection Light Armor Plating Weapon Light Assault Rifle Energy Gun Particle Gun Ballistic Gun Light Assault Rifle Ballistic Cannon Constructs Launcher Grenade Launcher Build | -11 -10 -10 -9 ------- Run | Yrd Mat Sub Rec Slots Evolved . | . . . . Power . | . . . . Propulsion . | . . . . Utility . | . . . . Weapon . | . . . . Parts Attached 16 | 7 7 1 1 Power 3 | 1 1 1 . Engine 2 | 1 1 . . Core 1 | . . 1 . Reactor . | . . . . Propulsion 3 | 2 1 . . Treads . | . . . . Leg . | . . . . Wheel 3 | 2 1 . . Hover . | . . . . Flight . | . . . . Utility 5 | 2 2 . 1 Device 2 | 1 . . 1 Storage 2 | 1 1 . . Processor . | . . . . Hackware . | . . . . Protection 1 | . 1 . . Artifact . | . . . . Weapon 5 | 2 3 . . Energy Gun 1 | . 1 . . Energy Cannon . | . . . . Ballistic Gun 3 | 2 1 . . Ballistic Cannon . | . . . . Launcher 1 | . 1 . . Special Weapon . | . . . . Impact Weapon . | . . . . Slashing Weapon . | . . . . Piercing Weapon . | . . . . Special Melee Weapon . | . . . . Unidentified Prototypes . | . . . . Parts Lost 7 | . 1 3 3 Power 1 | . . 1 . Propulsion 2 | . . . 2 Utility 2 | . 1 1 . Weapon 2 | . . 1 1 Highest Loss Streak 3 | . 1 3 2 To Critical Strikes . | . . . . Average Slot Usage (%) 93 | . 99 90 50 Engine 11 | . 14 7 . Core 1 | . . 4 7 Wheel 25 | . 28 28 10 Device 4 | . 3 . 13 Storage 12 | . 14 14 . Protection 8 | . 10 9 . Energy Gun 8 | . 10 . . Ballistic Gun 15 | . 17 11 . Ballistic Cannon 1 | . . . 8 Launcher 1 | . . 14 10 Naked Turns . | . . . . Heaviest Build 16 | 11 16 16 13 Greatest Support 32 | 32 32 32 32 Greatest Overweight (x) 2 | . . . 2 Average Overweight (x) . | . . . . Largest Inventory Capacity 8 | 8 8 8 8 Average Capacity 7 | 7 8 8 5 Most Carried 8 | 8 8 8 7 Average Carried 7 | 4 7 7 3 Final Capacity 8 | 8 8 8 5 Final Carried 8 | 8 8 7 3 Scrap Engine Consumption 12 | . . . 12 Constructs Created 2 | . . . 2 Constructs Modified 1 | . . . 1 Class Distribution -------------------- 91% | Mutant 8% | Construct Dominant Class ---------------- Mutant | -10/Materials Mutant | -10/Subcaves Construct | -9/Recycling Resources | -11 -10 -10 -9 ----------- Run | Yrd Mat Sub Rec Matter Collected 679 | 344 248 . 87 Remotely . | . . . . Salvage Created 1044 | 206 581 26 231 Parts 75 | 14 48 4 9 Haulers Intercepted 2 | . 2 . . Recyclers Shooed 1 | . 1 . . Parts Field Recycled . | . . . . Retrieved Matter . | . . . . Parts Self-Destructed 1 | . . 1 . Prevented . | . . . . Kills | -11 -10 -10 -9 ------- Run | Yrd Mat Sub Rec Combat Hostiles Destroyed 15 | . 9 3 3 Guns 9 | . 9 . . Cannons 2 | . . . 2 AOE 3 | . . 3 . Classes Destroyed 11 | 3 6 1 1 Worker 3 | 2 1 . . Builder 1 | . 1 . . Tunneler 4 | 4 . . . Hauler 2 | . 2 . . Recycler 4 | 1 1 . 2 Operator 2 | . 2 . . Turret 2 | . . 2 . Watcher 3 | . 3 . . Swarmer 6 | . 3 3 . Grunt 7 | . 6 . 1 Sentry 2 | . . . 2 Best Kill Streak 5 | 3 3 5 4 Combat Bots Only 3 | . 3 3 3 Max Kills in Single Turn 2 | 1 1 2 1 Gunslinging . | . . . . Exploded 2 | . . 2 . Melee . | . . . . Uniques/NPCs Destroyed . | . . . . Combat | -11 -10 -10 -9 -------- Run | Yrd Mat Sub Rec Hostile Shots Fired 137 | . 49 61 27 Missed 43 | . 12 26 5 Damage Taken 1084 | . 434 267 383 Core 277 | . 44 67 166 Absorbed by Shields . | . . . . Core Remaining (%) 100 | 100 . . . Volleys Fired 165 | 37 93 10 25 Largest 2 | 2 2 1 1 Hottest 85 | 40 85 30 30 Shots Fired 289 | 74 180 10 25 Gun 249 | 74 175 . . Cannon 25 | . . . 25 Launcher 15 | . 5 10 . Special . | . . . . Kinetic 204 | 74 130 . . Thermal 70 | . 45 . 25 Explosive 15 | . 5 10 . Electromagnetic . | . . . . Robot Hit Streak 12 | 12 11 4 12 Robot Miss Streak 5 | 5 5 2 2 Penetration Max . | . . . . Secondary Targets 1 | . 1 . . Max Gunslinging Chain 1 | . 1 . . Shots Hit Robots 181 | 47 108 7 19 Core Hits 72 | 15 39 10 8 Critical Kills . | . . . . Critical Parts Destroyed . | . . . . Critical Strikes 2 | . 1 . 1 Burn 2 | . 1 . 1 Melee Attacks . | . . . . Impact . | . . . . Slashing . | . . . . Piercing . | . . . . Sneak Attacks . | . . . . Combat Hostiles . | . . . . Follow-up Attacks . | . . . . Damage Inflicted 2143 | 383 1104 309 347 Guns 1487 | 383 1104 . . Cannons 347 | . . . 347 Explosions 309 | . . 309 . Melee . | . . . . Ramming . | . . . . Kinetic 1112 | 383 729 . . Thermal 722 | . 375 . 347 Explosive 309 | . . 309 . Electromagnetic . | . . . . Impact . | . . . . Slashing . | . . . . Piercing . | . . . . Highest Corruption 6 | . 3 3 6 Average Corruption 2 | . 2 3 3 Corruption Purged . | . . . . Corruption Blocked . | . . . . Effects 14 | . 9 1 4 Message Errors 6 | . 2 . 4 Matter Fused 1 | . 1 . . Energy Discharges 1 | . 1 . . Data Loss (minor) 2 | . 1 1 . Data Loss (major) 2 | . 2 . . Misfires 2 | . 2 . . Overload Shots . | . . . . Overflow Damage 10 | . . 5 5 Projectiles 5 | . . . 5 Explosions 5 | . . 5 . Melee . | . . . . Knockbacks . | . . . . Impact . | . . . . Kinetic . | . . . . Secondary . | . . . . Self-Inflicted Damage 29 | . 1 28 . Shots 2 | . 1 1 . Rammed . | . . . . Targets Rammed . | . . . . Kicked . | . . . . Crushed . | . . . . Highest Temperature 313 | . 313 16 2 Average Temperature 75 | . 76 10 2 Received Heat Transfer 510 | . 219 210 81 Siege Activations . | . . . . Robots Corrupted . | . . . . Combat Hostiles . | . . . . Parts Fried . | . . . . Impact Corruptions . | . . . . Robots Melted 1 | . . . 1 Combat Hostiles 1 | . . . 1 Parts Melted 6 | . . . 6 Heat Transferred 1776 | . 962 . 814 Parts Sabotaged . | . . . . Parts Stolen . | . . . . Parts Stripped . | . . . . Power Chain Reactions . | . . . . Alert | -11 -10 -10 -9 ------- Run | Yrd Mat Sub Rec Peak Influence 341 | 35 288 . 341 Initial 295 | . 22 . 295 Average 121 | 14 111 . 302 Maximum Alert Level 1 | . 1 . 1 Low Security (%) 81 | 100 90 . . Level 1 18 | . 9 . 100 Level 2 . | . . . . Level 3 . | . . . . Level 4 . | . . . . Level 5 . | . . . . High Security . | . . . . Max Security . | . . . . Squads Dispatched 2 | . 2 . . Investigation . | . . . . Extermination . | . . . . Reinforcement 2 | . 2 . . Assault . | . . . . Garrison . | . . . . Intercept . | . . . . Searches Triggered . | . . . . Construction Impeded . | . . . . Haulers Reinforced . | . . . . Active Scanning Responses . | . . . . Cargo Convoy Interrupts . | . . . . Stealth | -11 -10 -10 -9 --------- Run | Yrd Mat Sub Rec Distress Signals 2 | . . . 2 Communications Jammed . | . . . . Distress Signals . | . . . . Times Spotted 60 | . 27 28 5 Peak Tracking Total 6 | . 4 6 2 Tactical Retreats 2 | . . 2 . Traps | -11 -10 -10 -9 ------- Run | Yrd Mat Sub Rec Traps Triggered 3 | . 3 . . Indirectly . | . . . . Trap Hack Attempts . | . . . . Triggered . | . . . . Disarmed . | . . . . Reprogrammed . | . . . . Reused . | . . . . Traps Extracted . | . . . . Installed . | . . . . Triggered . | . . . . Machines | -11 -10 -10 -9 ---------- Run | Yrd Mat Sub Rec Machines Disabled 3 | . . 3 . Max in Single Turn 2 | . . 2 . Machines Repaired . | . . . . Machines Dismantled . | . . . . Machines Sabotaged . | . . . . Overloaded Fab Kills . | . . . . Hacking | -11 -10 -10 -9 --------- Run | Yrd Mat Sub Rec Machines Accessed 7 | . 6 . 1 Terminals 4 | . 4 . . Fabricators . | . . . . Repair Stations . | . . . . Recycling Units 3 | . 2 . 1 Scanalyzers . | . . . . Garrison Access . | . . . . Total Hacks 12 | . 10 . 2 Successful 7 | . 6 . 1 Failed 5 | . 4 . 1 Catastrophic . | . . . . Database Lockouts . | . . . . Manual 6 | . 6 . . Terminals 6 | . 6 . . Fabricators . | . . . . Repair Stations . | . . . . Recycling Units 6 | . 4 . 2 Scanalyzers . | . . . . Garrison Access . | . . . . Terminal Hacks . | . . . . Fabricator Hacks . | . . . . Repair Station Hacks . | . . . . Recycling Unit Hacks 3 | . 2 . 1 Retrieve Components 3 | . 2 . 1 Scanalyzer . | . . . . Garrison Access Hacks . | . . . . Unauthorized Hacks 4 | . 4 . . Terminals 4 | . 4 . . Botnet 4 | . 4 . . Fabricators . | . . . . Repair Stations . | . . . . Recycling Units . | . . . . Scanalyzers . | . . . . Garrison Access . | . . . . Data Cores Recovered . | . . . . Used . | . . . . Hacking Detections 3 | . 2 . 1 Full Trace Events . | . . . . Feedback Events . | . . . . Feedback Blocked . | . . . . Robot Schematics Acquired . | . . . . Robots Built . | . . . . Authchips . | . . . . Time . | . . . . Total Robot Build Rating . | . . . . Part Schematics Acquired . | . . . . Parts Built . | . . . . Authchips . | . . . . Time . | . . . . Total Part Build Rating . | . . . . Parts Repaired . | . . . . Time . | . . . . Parts Recycled . | . . . . Recycled Matter . | . . . . Retrieved Matter . | . . . . Retrieved Components 14 | . 12 . 2 Parts Scanalyzed . | . . . . Part Schematics Acquired . | . . . . Parts Damaged . | . . . . Bothacking | -11 -10 -10 -9 ------------ Run | Yrd Mat Sub Rec Used RIF Installer . | . . . . Robots Hacked . | . . . . Non-combat . | . . . . Combat . | . . . . Robot Hacks Applied . | . . . . Relay Couplers Released . | . . . . Fabnet Peak Effective % . | . . . . Robots Rewired . | . . . . Allies Hacked . | . . . . Hacks Repelled . | . . . . Allies | -11 -10 -10 -9 -------- Run | Yrd Mat Sub Rec Total Allies . | . . . . Largest Group . | . . . . Highest-Rated Group . | . . . . Highest-Rated Ally . | . . . . Total Orders . | . . . . Ally Attacks . | . . . . Total Damage . | . . . . Kills . | . . . . Allies Corrupted . | . . . . Allies Melted . | . . . . Intel | -11 -10 -10 -9 ------- Run | Yrd Mat Sub Rec Robot Analysis Total . | . . . . Derelict Logs Recovered 1 | . . 1 . Drone Launches . | . . . . Drone Recoveries . | . . . . Exploration | -11 -10 -10 -9 ------------- Run | Yrd Mat Sub Rec Turns Passed 1932 | 236 1422 58 216 Spaces Moved 1452 | 123 1139 38 152 Core 43 | 4 . . 39 Treads . | . . . . Legs . | . . . . Wheels 1409 | 119 1139 38 113 Hover . | . . . . Flight . | . . . . Fastest Speed 50 | 50 100 100 90 Average Speed 100 | 98 100 100 105 Slowest Speed 150 | 100 100 100 150 Overloaded Moves . | . . . . Propulsion Burnouts . | . . . . Robots Hopped . | . . . . Cave-ins Triggered . | . . . . Exploration Rate (%) 33 | 6 98 4 27 Regions Visited 3 Branch Regions 2 Pre-discovered Areas . | . . . . Known Exits Taken . | . . . . Unknown Exits Taken 3 | 1 1 1 . Scrap Searched . | . . . . Spaces Dug . | . . . . Terrain Destroyed 26 | . 12 14 . Melee . | . . . . Projectile . | . . . . AOE 26 | . 12 14 . Terrain Rammed . | . . . . Walls Destroyed . | . . . . Machines Disabled . | . . . . Actions | -11 -10 -10 -9 --------- Run | Yrd Mat Sub Rec Total 1682 | 176 1271 48 187 Wait 10 | . 10 . . Move 1449 | 122 1138 37 152 Hop . | . . . . Pick Up 20 | 9 10 . 1 Fast Attach 9 | 7 1 . 1 Attach 2 | . 1 1 . Detach 2 | . 1 . 1 Swap 5 | . 5 . . Drop 20 | 1 12 . 7 Fire 165 | 37 93 10 25 Melee . | . . . . Ram . | . . . . Kick . | . . . . Crush . | . . . . Escape Stasis . | . . . . Rewire . | . . . . Trap . | . . . . Miscellaneous . | . . . . Route ------- -11/Scrapyard -10/Materials (discovered 5 exits: [*Mat x3] / [*Min] / [*Sub]) -10/Subcaves -9/Recycling History --------- Turn | Location | Event 12 | -11/Scrapyard | Discovered new exit (range 16) 237 | -11/Scrapyard | Entered Materials 254 | -10/Materials | Discovered new exit (range 16) 307 | -10/Materials | Build established: Mutant 351 | -10/Materials | Discovered new exit (range 6) 435 | -10/Materials | Discovered new exit (range 16) 578 | -10/Materials | Discovered new exit (range 7) 792 | -10/Materials | Discovered new exit (range 16) 1659 | -10/Materials | Entered Subcaves 1685 | -10/Subcaves | Discovered new exit (range 11) 1717 | -10/Subcaves | Entered Recycling 1720 | -9/Recycling | Found Scrap Engine 1732 | -9/Recycling | Lost 3 parts (1p1u1w) 1875 | -9/Recycling | Core integrity fell below 50% 1929 | -9/Recycling | Core integrity fell below 20% 1933 | -9/Recycling | Destroyed by L-31 Rogue with Katana Last Messages --------------- 01918_ U-05 Engineer builds a Door. 01919_ Scrap Engine consumes Aluminum Leg. 01922_ R-06 Scavenger collects Com. Wheel. 01923_ TQ WCVHS0 A7H2